bitfinex/quotes_BTCUSD_20250422
["timestamp","ask_amount","ask_price","bid_price","bid_amount"]
[1745360263599,0.10830305,92956.0,92942.0,0.01491878]
[1745360263951,0.00460281,92955.0,92943.0,0.22594474]
[1745360264168,0.00460281,92955.0,92942.0,0.01500785]
[1745360264365,0.11290586,92955.0,92935.0,5.939e-05]
[1745360264514,0.11290586,92955.0,92938.0,0.01075986]
[1745360264720,0.10830305,92955.0,92938.0,0.01514383]
[1745360264979,0.00459801,92954.0,92937.0,0.01075997]
[1745360265181,0.00459801,92954.0,92936.0,0.01076009]
[1745360265592,0.00459801,92954.0,92937.0,0.22595951]
[1745360265743,0.00459801,92954.0,92937.0,0.01075997]
[1745360265952,0.00459801,92954.0,92936.0,0.01076009]
[1745360266166,0.00459801,92954.0,92941.0,0.01075951]
[1745360266372,0.00459801,92954.0,92939.0,0.01075974]
[1745360266571,1.5,92955.0,92937.0,0.01075997]
[1745360267121,1.52785097,92955.0,92935.0,5.939e-05]
[1745360267331,1.52785097,92955.0,92940.0,0.27472964]
[1745360267524,0.10830305,92954.0,92935.0,0.01516036]
[1745360267927,0.10830305,92954.0,92935.0,5.939e-05]
[1745360268117,0.10830305,92954.0,92937.0,0.001]
[1745360269452,0.10830305,92954.0,92935.0,0.01496645]
[1745360269654,0.10930305,92954.0,92935.0,0.01596645]
[1745360269862,0.10830305,92954.0,92935.0,0.01596645]
[1745360270060,0.10830305,92954.0,92935.0,0.01496645]
[1745360270292,0.10930305,92954.0,92935.0,0.01496645]
[1745360270421,0.10930305,92954.0,92937.0,0.001]
[1745360270810,0.10930305,92954.0,92935.0,0.01496645]
[1745360271322,0.10930305,92954.0,92935.0,0.01596645]
[1745360271524,0.10830305,92953.0,92935.0,0.01596645]
[1745360271750,0.10830305,92952.0,92935.0,0.01596645]
[1745360272316,0.0459,92951.0,92935.0,0.00105939]
[1745360272532,0.10830305,92950.0,92935.0,5.939e-05]
[1745360272772,0.10830305,92950.0,92935.0,0.00105939]
[1745360273202,0.10830305,92950.0,92935.0,5.939e-05]
[1745360273627,0.10830305,92950.0,92935.0,0.00105939]
[1745360273628,0.01075986,92938.0,92935.0,0.00105939]
[1745360273831,0.10830305,92937.0,92935.0,0.00105939]
[1745360274040,0.10830305,92937.0,92935.0,5.939e-05]
[1745360274176,0.21520185,92936.0,92935.0,5.939e-05]
[1745360274544,0.21520185,92936.0,92897.0,0.0008472]
[1745360274545,0.01076171,92922.0,92897.0,0.0008472]
[1745360274675,0.50130143,92921.0,92903.0,0.00094956]
[1745360274879,0.28606305,92921.0,92903.0,0.00094956]
[1745360275176,0.28606305,92921.0,92903.0,0.01599852]
[1745360275379,0.28606305,92921.0,92903.0,0.00094956]
[1745360275865,0.01076321,92909.0,92903.0,0.00094956]
[1745360276083,0.46302305,92908.0,92903.0,0.00094956]
[1745360276926,0.51182305,92908.0,92903.0,0.00094956]
[1745360277112,0.21527366,92905.0,92903.0,0.00094956]
[1745360277253,0.10830305,92904.0,92903.0,0.00094956]
[1745360277454,0.21528988,92898.0,92897.0,0.0008472]
[1745360277679,0.10830305,92898.0,92897.0,0.00098411]
[1745360277885,0.36272,92908.0,92897.0,0.00098411]
[1745360278101,0.10830305,92907.0,92897.0,0.00098411]
[1745360278300,0.17776,92906.0,92897.0,0.00098411]
[1745360278507,0.17776,92906.0,92899.0,0.09672903]
[1745360278675,0.17776,92906.0,92899.0,0.08596466]
[1745360278894,0.006,92904.0,92903.0,0.001]
[1745360279394,0.006,92904.0,92899.0,0.10073815]
[1745360279556,0.17976,92906.0,92899.0,0.01477349]
[1745360279761,0.17976,92906.0,92897.0,0.00098411]
[1745360280003,0.002,92904.0,92897.0,0.01568218]
[1745360280256,0.17776,92906.0,92897.0,0.00098411]
[1745360280477,0.001,92904.0,92897.0,0.00098411]
[1745360280670,0.003,92904.0,92897.0,0.00098411]
[1745360281436,0.003,92904.0,92897.0,0.01553725]
[1745360281636,0.002,92904.0,92897.0,0.01553725]
[1745360281852,0.17776,92906.0,92897.0,0.01553725]
[1745360282063,0.001,92904.0,92897.0,0.01553725]
[1745360282888,0.17776,92906.0,92897.0,0.01553725]
[1745360283089,0.17876,92906.0,92897.0,0.01553725]
[1745360283431,0.17776,92906.0,92897.0,0.01553725]
[1745360283635,0.01076414,92901.0,92897.0,0.00098411]
[1745360283828,0.001,92904.0,92897.0,0.00098411]
[1745360283829,0.10830305,92900.0,92897.0,0.00098411]
[1745360285715,0.17776,92906.0,92897.0,0.00098411]
[1745360285903,0.003,92900.0,92897.0,0.00098411]
[1745360286281,0.006,92900.0,92897.0,0.00098411]
[1745360286657,0.006,92900.0,92898.0,0.048]
[1745360286658,0.003,92900.0,92898.0,0.048]
[1745360288272,0.18076,92906.0,92898.0,0.048]
[1745360288432,0.003,92900.0,92898.0,0.048]
[1745360288850,0.006,92900.0,92898.0,0.048]
[1745360289053,0.003,92900.0,92898.0,0.048]
[1745360289627,0.003,92900.0,92897.0,0.00098411]
[1745360289628,0.10830305,92900.0,92897.0,0.00098411]
[1745360289967,0.10830305,92899.0,92897.0,0.00098411]
[1745360290172,0.003,92900.0,92897.0,0.00098411]
[1745360291614,0.005,92900.0,92897.0,0.00098411]
[1745360291823,0.004,92899.0,92897.0,0.00098411]
[1745360292197,0.10830305,92898.0,92897.0,0.00098411]
[1745360293735,0.002,92899.0,92897.0,0.00098411]
[1745360294374,0.17776,92906.0,92897.0,0.00098411]
[1745360294545,0.004,92898.0,92897.0,0.00098411]
[1745360294752,0.004,92898.0,92897.0,0.04738411]
[1745360295105,1.5,92900.0,92898.0,0.21528988]
[1745360295732,1.5,92900.0,92899.0,0.10830305]
[1745360296181,1.4532,92900.0,92899.0,0.1692439]
[1745360296310,1.29661739,92900.0,92899.0,0.22562022]
[1745360296516,0.31036746,92900.0,92899.0,0.22562022]
[1745360296732,0.17676,92927.0,92925.0,0.21522733]
[1745360296956,0.17676,92927.0,92925.0,0.32353038]
[1745360297364,0.000424,92944.0,92935.0,0.0107602]
[1745360297565,0.000424,92944.0,92933.0,0.01076044]
[1745360297906,0.000424,92944.0,92941.0,0.22594852]
[1745360298025,0.000424,92944.0,92941.0,0.00013691]
[1745360298439,0.000424,92944.0,92941.0,0.01089642]
[1745360298637,0.002424,92944.0,92941.0,0.0249317]
[1745360298838,0.003424,92944.0,92941.0,0.01417219]
[1745360299044,0.000424,92944.0,92941.0,0.01417219]
[1745360299253,0.004424,92944.0,92941.0,0.00013691]
[1745360299474,0.007424,92944.0,92941.0,0.00013691]
[1745360302004,0.11572705,92944.0,92941.0,0.00013691]
[1745360302244,0.0477,92942.0,92941.0,0.00013691]
[1745360302448,0.15600305,92942.0,92941.0,0.00013691]
[1745360302620,0.007424,92944.0,92941.0,0.00013691]
[1745360303947,0.003424,92944.0,92941.0,0.00013691]
[1745360304175,0.000424,92944.0,92941.0,0.00013691]
[1745360304371,0.003,92942.0,92941.0,0.00013691]
[1745360304532,0.006,92942.0,92941.0,0.00013691]
[1745360304741,0.003,92942.0,92941.0,0.00013691]
[1745360305345,0.003424,92944.0,92941.0,0.00013691]
[1745360305601,0.000424,92944.0,92941.0,0.00013691]
[1745360305745,0.006,92942.0,92941.0,0.00013691]
[1745360307139,0.003,92942.0,92941.0,0.00013691]
[1745360307346,0.003,92942.0,92941.0,0.32363024]
[1745360307773,0.003424,92944.0,92941.0,0.33438975]
[1745360307943,0.000424,92944.0,92943.0,0.21518565]
[1745360308124,0.003424,92944.0,92943.0,0.3234887]
[1745360308466,0.003424,92944.0,92941.0,0.2260867]
[1745360308667,0.003424,92944.0,92941.0,0.2300867]
[1745360308971,0.000424,92944.0,92943.0,0.2297265]
[1745360309186,0.000424,92944.0,92943.0,0.33802955]
[1745360309388,0.000424,92982.0,92974.0,0.01075569]
[1745360309595,0.000424,92982.0,92974.0,0.000424]
[1745360310384,0.00615937,92981.0,92974.0,0.000424]
[1745360310552,0.000424,92982.0,92974.0,0.00056091]
[1745360310755,0.00621709,92980.0,92974.0,0.01470921]
[1745360310962,0.00622429,92981.0,92974.0,0.01470921]
[1745360311156,0.000424,92982.0,92974.0,0.01470921]
[1745360311157,0.00620989,92979.0,92974.0,0.00056091]
[1745360311355,0.000424,92982.0,92974.0,0.00056091]
[1745360311356,0.00621709,92980.0,92974.0,0.01458203]
[1745360311559,0.00620269,92978.0,92974.0,0.00056091]
[1745360311768,0.00620989,92979.0,92974.0,0.00056091]
[1745360311976,0.00619548,92977.0,92974.0,0.00056091]
[1745360312177,0.00620269,92978.0,92974.0,0.00056091]
[1745360312406,0.00618828,92976.0,92974.0,0.01457504]
[1745360312619,0.002424,92980.0,92974.0,0.01457504]
[1745360312978,0.10830305,92979.0,92974.0,0.00056091]
[1745360313146,0.11451294,92979.0,92974.0,0.00056091]
[1745360313560,0.00216058,92978.0,92952.0,0.01075824]
[1745360313773,0.10830305,92977.0,92953.0,0.01075812]
[1745360313975,0.00216058,92976.0,92953.0,0.01075812]
[1745360314148,0.00216058,92976.0,92952.0,0.02519973]
[1745360314310,0.00617907,92975.0,92952.0,0.00013714]
[1745360314516,0.00216058,92974.0,92952.0,0.00013714]
[1745360314884,0.21513303,92966.0,92952.0,0.00013714]
[1745360315088,0.22589561,92964.0,92953.0,0.001]
[1745360315242,0.0489,92961.0,92953.0,0.001]
[1745360315444,0.11046363,92960.0,92953.0,0.002]
[1745360315644,0.00216058,92960.0,92953.0,0.002]
[1745360316130,0.0497,92973.0,92953.0,0.002]
[1745360316131,0.05106058,92972.0,92954.0,0.010758]
[1745360316261,0.10830305,92971.0,92954.0,0.010758]
[1745360316460,0.00825417,92970.0,92954.0,0.010758]
[1745360316664,0.11655722,92970.0,92953.0,0.001]
[1745360316865,0.11655722,92970.0,92952.0,0.00013714]
[1745360317212,0.11655722,92970.0,92963.0,0.01075696]
[1745360317213,0.00609359,92970.0,92963.0,0.01075696]
[1745360317414,0.00609359,92970.0,92961.0,0.22590113]
[1745360317614,0.00258458,92980.0,92961.0,0.01075719]
[1745360317790,0.00258458,92980.0,92958.0,0.01075754]
[1745360317791,0.10830305,92979.0,92958.0,0.01075754]
[1745360317952,0.11162309,92979.0,92957.0,0.01075766]
[1745360318174,0.11162309,92979.0,92959.0,0.01075743]
[1745360318386,0.00615946,92979.0,92964.0,0.01075685]
[1745360318603,0.00615946,92979.0,92965.0,0.01075673]
[1745360318802,0.000424,92980.0,92964.0,0.01075685]
[1745360319063,0.000424,92980.0,92961.0,0.001]
[1745360319274,0.00615946,92979.0,92961.0,0.001]
[1745360319625,0.000424,92980.0,92961.0,0.001]
[1745360319817,0.000424,92980.0,92960.0,0.28535133]
[1745360320142,0.00715946,92979.0,92960.0,0.27459402]
[1745360320550,0.001,92979.0,92961.0,0.01075719]
[1745360320755,0.000424,92980.0,92961.0,0.01075719]
[1745360320756,0.000424,92980.0,92961.0,0.01175719]
[1745360320955,0.10872705,92980.0,92961.0,0.001]
[1745360321180,0.01075534,92977.0,92961.0,0.001]
[1745360321385,0.01075569,92974.0,92961.0,0.001]
[1745360321592,0.0489,92972.0,92952.0,0.00013714]
[1745360321803,0.10830305,92971.0,92952.0,0.00013714]
[1745360322017,0.11445499,92971.0,92961.0,0.001]
[1745360323464,0.11445499,92971.0,92961.0,0.002]
[1745360323687,0.11445499,92971.0,92961.0,0.001]
[1745360323903,0.11445499,92971.0,92952.0,0.00013714]
[1745360324123,0.11745499,92971.0,92952.0,0.00013714]
[1745360324562,0.11745499,92971.0,92950.0,0.27459402]
[1745360324772,0.11545499,92971.0,92950.0,0.27473074]
[1745360325049,0.17552,92970.0,92950.0,0.27473074]
[1745360325251,0.00613754,92969.0,92952.0,0.001]
[1745360326070,0.10830305,92968.0,92952.0,0.001]
[1745360326270,0.00612313,92967.0,92952.0,0.001]
[1745360326492,0.10830305,92966.0,92950.0,0.00013672]
[1745360326692,0.10830305,92966.0,92950.0,0.00113672]
[1745360326693,0.00610872,92965.0,92950.0,0.00113672]
[1745360326904,0.10830305,92964.0,92950.0,0.00113672]
[1745360327106,0.00609431,92963.0,92950.0,0.00013672]
[1745360327315,0.0479,92962.0,92950.0,0.00013672]
[1745360327571,0.0060799,92961.0,92952.0,0.001]
[1745360327738,0.0060799,92961.0,92950.0,0.00013672]
[1745360327938,0.0060799,92961.0,92950.0,0.27473074]
[1745360328140,0.0060799,92961.0,92950.0,0.27573074]
[1745360328342,0.17552,92970.0,92950.0,0.27573074]
[1745360328512,0.10830305,92969.0,92951.0,0.01075835]
[1745360328723,0.00613033,92968.0,92950.0,0.27573074]
[1745360328925,0.11443338,92968.0,92950.0,0.27573074]
[1745360329312,0.11443338,92968.0,92950.0,0.28648921]
[1745360329710,0.11443338,92968.0,92951.0,0.01075835]
[1745360330517,0.11443338,92968.0,92950.0,0.28648921]
[1745360330938,0.11443338,92968.0,92952.0,0.01075824]
[1745360331648,0.11443338,92968.0,92951.0,0.01075835]
[1745360332068,0.11443338,92968.0,92952.0,0.01075824]
[1745360332847,0.11443338,92968.0,92950.0,0.27473074]
[1745360333169,0.11443338,92968.0,92951.0,0.01075835]
[1745360333600,0.11443338,92968.0,92952.0,0.01075824]
[1745360333738,0.10830305,92968.0,92950.0,0.00013672]
[1745360333944,0.14766216,92967.0,92950.0,0.00013672]
[1745360334495,0.11438985,92967.0,92950.0,0.00013672]
[1745360335664,0.12259826,92967.0,92950.0,0.00013672]
[1745360336198,0.11759826,92967.0,92950.0,0.00013672]
[1745360336995,0.0060868,92967.0,92950.0,0.27473074]
[1745360337411,0.0060868,92967.0,92950.0,0.00013672]
[1745360338588,0.10830305,92966.0,92950.0,0.00013672]
[1745360339011,0.11432142,92966.0,92950.0,0.00013672]
[1745360342536,0.0489,92956.0,92950.0,0.00013672]
[1745360342733,0.0455,92951.0,92950.0,0.00013672]
[1745360343000,0.15380305,92951.0,92950.0,0.00013672]
[1745360344852,0.15680305,92951.0,92950.0,0.00013672]
[1745360345259,0.15880305,92951.0,92950.0,0.00013672]
[1745360345462,0.16380305,92951.0,92950.0,0.00013672]
[1745360345888,0.15880305,92951.0,92950.0,0.00013672]
[1745360346085,0.16480305,92951.0,92950.0,0.00113672]
[1745360349053,0.18532,92951.0,92950.0,0.00113672]
[1745360350328,0.208742,92951.0,92950.0,0.00113672]
[1745360350555,0.18532,92951.0,92950.0,0.00113672]
[1745360350828,0.18482,92951.0,92950.0,0.00113672]
[1745360352332,0.0105,92951.0,92950.0,0.00113672]
[1745360352534,0.18482,92951.0,92950.0,0.00113672]
[1745360354313,0.29312305,92951.0,92950.0,0.00113672]
[1745360355419,0.39022305,92951.0,92950.0,0.00113672]
[1745360361213,0.74494305,92951.0,92950.0,0.00113672]
[1745360362530,0.74498305,92951.0,92950.0,0.00113672]
[1745360363121,0.74498305,92951.0,92917.0,0.19238136]
[1745360363329,0.10830305,92950.0,92923.0,0.08596466]
[1745360363901,0.46232,92951.0,92931.0,0.21521301]
[1745360364120,0.17436,92949.0,92931.0,0.21521301]
[1745360364323,0.17436,92949.0,92934.0,0.01076032]
[1745360364680,0.17436,92949.0,92924.0,0.01076148]
[1745360364897,0.28266305,92949.0,92925.0,0.22598858]
[1745360365100,0.10830305,92948.0,92928.0,0.01076101]
[1745360365388,0.10830305,92948.0,92927.0,0.01076113]
[1745360365903,0.10830305,92948.0,92930.0,0.01076078]
[1745360366107,0.10830305,92948.0,92929.0,0.0107609]
[1745360366468,0.10830305,92948.0,92933.0,0.01076044]
[1745360366672,0.10830305,92948.0,92931.0,0.01076067]
[1745360367085,0.10830305,92948.0,92930.0,0.2853548]
[1745360367296,0.10930305,92948.0,92931.0,0.01076067]
[1745360367496,0.001,92948.0,92934.0,0.01076032]
[1745360367698,0.17436,92947.0,92934.0,0.01076032]
[1745360368137,0.17436,92947.0,92935.0,0.0107602]
[1745360368340,0.17436,92947.0,92936.0,0.01076009]
[1745360368513,0.17436,92947.0,92935.0,0.0107602]
[1745360368733,0.17436,92947.0,92938.0,0.01075986]
[1745360368919,0.17436,92947.0,92935.0,0.0107602]
[1745360369469,0.17436,92947.0,92934.0,0.01076032]
[1745360369598,0.17636,92947.0,92935.0,0.0107602]
[1745360369801,0.17736,92947.0,92935.0,0.0107602]
[1745360370003,0.17536,92947.0,92925.0,0.05646136]
[1745360370203,0.17636,92947.0,92927.0,0.2259832]
[1745360370402,0.17736,92947.0,92930.0,0.01076078]
[1745360370629,0.17736,92947.0,92928.0,0.32352143]
[1745360370630,0.17736,92947.0,92929.0,0.0107609]
[1745360370907,0.17536,92947.0,92929.0,0.0107609]
[1745360371095,0.17536,92947.0,92930.0,0.01076078]
[1745360371295,0.17436,92947.0,92930.0,0.01076078]
[1745360371501,0.17436,92947.0,92932.0,0.01076055]
[1745360371707,0.17436,92947.0,92931.0,0.01076067]
[1745360371878,0.17436,92947.0,92928.0,0.11906406]
[1745360372079,0.17436,92947.0,92929.0,0.0107609]
[1745360372432,0.17436,92947.0,92930.0,0.01076078]
[1745360372751,0.17436,92947.0,92928.0,0.10830305]
[1745360372961,0.17436,92947.0,92930.0,0.27459402]
[1745360373165,0.35472,92951.0,92931.0,0.01076067]
[1745360373387,0.17436,92946.0,92932.0,0.01076055]
[1745360373592,0.17436,92946.0,92931.0,0.0108977]
[1745360374019,0.17436,92945.0,92931.0,0.00013703]
[1745360375616,0.10830305,92944.0,92931.0,0.00013703]
[1745360375993,0.0494,92943.0,92931.0,0.00013703]
[1745360376158,0.15780305,92942.0,92931.0,0.00013703]
[1745360378291,0.01075974,92939.0,92931.0,0.00013703]
[1745360378533,0.10830305,92938.0,92931.0,0.00013703]
[1745360378712,0.0107602,92935.0,92931.0,0.00013703]
[1745360378919,0.10830305,92934.0,92931.0,0.00013703]
[1745360379128,0.0494,92933.0,92931.0,0.00013703]
[1745360379329,0.10830305,92932.0,92931.0,0.00013703]
[1745360380159,0.1228439,92932.0,92931.0,0.00013703]
[1745360380545,0.20966634,92932.0,92931.0,0.00113703]
[1745360380869,0.1238439,92932.0,92931.0,0.00113703]
[1745360381633,0.1308439,92932.0,92931.0,0.00113703]
[1745360381829,0.0977,92918.0,92895.0,0.08596466]
[1745360382028,0.32354891,92917.0,92895.0,0.08596466]
[1745360382232,0.32354891,92917.0,92895.0,0.09922461]
[1745360383220,0.0107631,92910.0,92895.0,0.01325995]
[1745360383447,0.28150305,92909.0,92892.0,0.00013581]
[1745360384351,0.28943931,92909.0,92892.0,0.00013581]
[1745360384733,0.28943931,92909.0,92892.0,0.00113581]
[1745360384941,0.28943931,92909.0,92892.0,0.00013581]
[1745360385135,0.1732,92908.0,92892.0,0.00013581]
[1745360385722,0.001,92909.0,92906.0,0.01076356]
[1745360386170,0.35476,92917.0,92901.0,0.08596466]
[1745360386372,0.001,92908.0,92906.0,0.22603402]
[1745360386576,0.001,92908.0,92907.0,0.00215241]
[1745360387388,0.002,92908.0,92904.0,0.01076379]
[1745360387508,0.001,92908.0,92905.0,0.33434017]
[1745360387910,0.002,92908.0,92907.0,0.005]
[1745360388111,0.35476,92917.0,92909.0,0.01076321]
[1745360388314,0.35476,92917.0,92909.0,0.00215241]
[1745360388539,0.35476,92917.0,92911.0,0.22602216]
[1745360388749,0.35476,92917.0,92914.0,0.22601524]
[1745360388942,0.35476,92917.0,92914.0,0.01076264]
[1745360389348,0.35476,92917.0,92909.0,0.01076321]
[1745360390356,0.35476,92917.0,92910.0,0.0107631]
[1745360390816,0.35576,92917.0,92910.0,0.0107631]
[1745360391019,0.35676,92917.0,92909.0,0.004]
[1745360391289,0.35676,92917.0,92909.0,0.01476321]
[1745360391503,0.35576,92917.0,92913.0,0.01076275]
[1745360391902,0.35676,92917.0,92910.0,0.0147631]
[1745360392104,0.35576,92917.0,92910.0,0.12306615]
[1745360392344,0.35576,92917.0,92910.0,0.004]
[1745360392517,0.35576,92917.0,92910.0,0.0147631]
[1745360392760,0.35576,92917.0,92911.0,0.01076298]
[1745360392979,0.35476,92917.0,92911.0,0.01076298]
[1745360393423,0.35576,92917.0,92913.0,0.01076275]
[1745360393692,0.35576,92917.0,92912.0,0.01076287]
[1745360394106,0.35576,92917.0,92914.0,0.01076264]
[1745360394478,0.35576,92917.0,92914.0,0.22601348]
[1745360394638,0.35476,92917.0,92914.0,0.22601348]
[1745360394842,0.35476,92917.0,92914.0,0.01076264]
[1745360395235,0.35576,92917.0,92914.0,0.01076264]
[1745360395668,0.35476,92917.0,92914.0,0.01076264]
[1745360396273,0.35476,92917.0,92912.0,0.22601814]
[1745360396471,0.35476,92917.0,92914.0,0.003]
[1745360396958,0.35576,92917.0,92914.0,0.003]
[1745360397172,0.35576,92917.0,92910.0,0.0107631]
[1745360397398,0.35576,92917.0,92912.0,0.003]
[1745360397805,0.35576,92917.0,92910.0,0.0107631]
[1745360398007,0.35476,92917.0,92914.0,0.003]
[1745360398569,0.1732,92919.0,92914.0,0.003]
[1745360399295,0.1732,92919.0,92911.0,0.01076298]
[1745360399499,0.1732,92919.0,92909.0,0.01076321]
[1745360399749,0.1732,92919.0,92911.0,0.01076298]
[1745360399932,0.1732,92919.0,92912.0,0.003]
[1745360400137,0.001,92917.0,92912.0,0.003]
[1745360400548,0.1732,92919.0,92912.0,0.003]
[1745360401176,0.1732,92919.0,92900.0,0.01076426]
[1745360401386,0.046,92917.0,92892.0,0.00113581]
[1745360401615,0.046,92917.0,92897.0,0.01076461]
[1745360401819,0.046,92917.0,92897.0,0.01016461]
[1745360402316,0.046,92917.0,92896.0,0.01076472]
[1745360402556,0.046,92917.0,92911.0,0.003]
[1745360402760,0.046,92917.0,92900.0,0.01076426]
[1745360402973,0.0475,92918.0,92900.0,0.38289707]
[1745360403177,0.0475,92928.0,92919.0,0.01076206]
[1745360403390,0.2207,92928.0,92920.0,0.01076194]
[1745360403608,0.0475,92928.0,92921.0,0.00215218]
[1745360403815,0.2197,92931.0,92918.0,0.01076217]
[1745360404377,0.2197,92931.0,92914.0,0.01076264]
[1745360404543,0.004,92928.0,92917.0,0.01076229]
[1745360404914,0.004,92928.0,92915.0,0.01076252]
[1745360405101,0.2197,92931.0,92915.0,0.01076252]
[1745360405311,0.2197,92931.0,92914.0,0.00013581]
[1745360405530,0.2237,92931.0,92915.0,0.01076252]
[1745360405735,0.2237,92931.0,92914.0,0.01089845]
[1745360405934,0.2237,92931.0,92915.0,0.01076252]
[1745360406256,0.2237,92931.0,92914.0,0.01089845]
[1745360406454,0.25082,92931.0,92914.0,0.00013581]
[1745360406752,0.2197,92931.0,92914.0,0.00113581]
[1745360406886,0.2227,92931.0,92914.0,0.00013581]
[1745360407292,0.2197,92931.0,92914.0,0.00013581]
[1745360407692,0.2217,92931.0,92915.0,0.001]
[1745360408995,0.2217,92931.0,92914.0,0.00013581]
[1745360409230,0.2217,92931.0,92920.0,0.27459402]
[1745360409576,0.2197,92931.0,92924.0,0.01076148]
[1745360409967,0.2227,92931.0,92924.0,0.01076148]
[1745360410176,0.2227,92931.0,92922.0,0.01076171]
[1745360410401,0.2197,92931.0,92922.0,0.01076171]
[1745360410647,0.2197,92931.0,92923.0,0.01076159]
[1745360410811,0.2247,92931.0,92924.0,0.01076148]
[1745360411023,0.2247,92931.0,92923.0,0.01076159]
[1745360411223,0.2197,92931.0,92924.0,0.01076148]
[1745360411426,0.2247,92931.0,92925.0,0.01076136]
[1745360411605,0.2247,92931.0,92923.0,0.01640658]
[1745360411802,0.2247,92931.0,92923.0,0.01076159]
[1745360411986,0.2257,92931.0,92919.0,0.01076206]
[1745360412186,0.2257,92931.0,92921.0,0.01076182]
[1745360412409,0.2257,92931.0,92922.0,0.01076171]
[1745360412654,0.2227,92931.0,92922.0,0.01076171]
[1745360412857,0.2197,92931.0,92922.0,0.01076171]
[1745360413053,0.2197,92931.0,92923.0,0.01076159]
[1745360413285,0.0005,92931.0,92929.0,0.21521802]
[1745360413458,0.0055,92931.0,92930.0,0.11045488]
[1745360413671,0.005,92931.0,92930.0,0.12499573]
[1745360413878,0.006,92931.0,92930.0,0.12499573]
[1745360414074,0.001,92931.0,92930.0,0.12499573]
[1745360414419,0.003,92931.0,92930.0,0.12499573]
[1745360414944,0.002,92931.0,92930.0,0.12499573]
[1745360415197,0.1,92940.0,92938.0,0.21519722]
[1745360415392,0.1,92940.0,92939.0,0.11045463]
[1745360415595,0.1,92940.0,92939.0,0.12499548]
[1745360415770,0.1,92940.0,92939.0,0.12599554]
[1745360415970,0.172,92968.0,92953.0,0.2151625]
[1745360416177,0.172,92968.0,92954.0,0.10830305]
[1745360416396,0.172,92968.0,92954.0,0.11045426]
[1745360416861,0.172,92968.0,92955.0,0.21515787]
[1745360416986,0.172,92968.0,92956.0,0.11045424]
[1745360417186,0.172,92968.0,92956.0,0.11059005]
[1745360418354,0.172,92968.0,92956.0,0.10843886]
[1745360418584,0.0004251,92969.0,92956.0,0.10843886]
[1745360419386,0.0014251,92957.0,92956.0,0.11343886]
[1745360419557,0.0014251,92957.0,92956.0,0.11643886]
[1745360421051,0.0014251,92957.0,92956.0,0.11858998]
[1745360422007,0.0014251,92957.0,92956.0,0.11643886]
[1745360422535,0.0014251,92957.0,92956.0,0.11858998]
[1745360423310,0.0014251,92957.0,92956.0,0.11643886]
[1745360427729,0.0482251,92957.0,92956.0,0.00813581]
[1745360428160,0.05428826,92957.0,92956.0,0.00813581]
[1745360428378,0.0482251,92957.0,92956.0,0.00813581]
[1745360428582,0.05328826,92957.0,92956.0,0.00313581]
[1745360428785,0.0472251,92957.0,92956.0,0.00013581]
[1745360429022,0.0482251,92957.0,92956.0,0.00513581]
[1745360429223,0.0482251,92957.0,92956.0,0.00113581]
[1745360429354,0.0492251,92957.0,92956.0,0.00513581]
[1745360429561,0.0492251,92957.0,92956.0,0.00413581]
[1745360429757,0.0492251,92957.0,92956.0,0.00513581]
[1745360430995,0.0024251,92957.0,92956.0,0.33074592]
[1745360431148,0.0024251,92957.0,92956.0,0.32859441]
[1745360435584,0.0004251,92969.0,92968.0,0.21512778]
[1745360435786,0.000424,92982.0,92979.0,0.21510233]
[1745360436033,0.000424,92982.0,92979.0,0.32340538]
[1745360436931,0.000424,92982.0,92979.0,0.34194623]
[1745360437134,0.001424,92980.0,92979.0,0.34194623]
[1745360437455,1e-08,92980.0,92979.0,0.39333194]
[1745360438092,0.000424,92982.0,92981.0,0.22963855]
[1745360438292,0.000424,92982.0,92981.0,0.36946501]
[1745360438534,0.00011469,93004.0,92985.0,0.21508845]
[1745360438709,0.30869405,93032.0,92997.0,0.1228439]
[1745360438990,0.30869405,93032.0,93018.0,0.0107506]
[1745360439164,0.08596466,93024.0,93018.0,0.0107506]
[1745360439388,0.08596466,93024.0,93012.0,0.0107513]
[1745360439571,0.08596466,93024.0,93002.0,0.10830305]
[1745360439572,0.0484,93022.0,92999.0,0.0107528]
[1745360439729,0.0484,93002.0,92987.0,0.22583712]
[1745360439931,0.0484,93002.0,92997.0,0.003]
[1745360440133,0.0484,93002.0,92993.0,0.01075349]
[1745360440337,0.0484,93002.0,92990.0,0.09629217]
[1745360440537,0.0484,93002.0,92998.0,0.21505457]
[1745360440749,0.001,93004.0,93002.0,0.21504913]
[1745360440935,0.001,93004.0,93003.0,0.1228439]
[1745360441452,0.17072,93018.0,93015.0,0.01075095]
[1745360441768,0.0468,93023.0,93016.0,0.01075083]
[1745360441968,0.0468,93023.0,93010.0,0.21502892]
[1745360441969,0.0468,93023.0,93001.0,0.01075257]
[1745360442299,0.0468,93023.0,93007.0,0.01075187]
[1745360442509,0.004,93018.0,93006.0,0.01075199]
[1745360442650,0.004,93018.0,93015.0,0.001]
[1745360443039,0.0468,93023.0,93015.0,0.001]
[1745360443237,0.0478,93023.0,93008.0,0.27459402]
[1745360443463,0.0478,93023.0,93008.0,0.28534578]
[1745360443679,0.0478,93023.0,93008.0,0.27459402]
[1745360443880,0.0478,93023.0,93008.0,0.28534578]
[1745360444126,0.0478,93023.0,93009.0,0.01075164]
[1745360444310,0.0478,93023.0,93010.0,0.01075153]
[1745360444476,0.0468,93023.0,93010.0,0.01075153]
[1745360444676,0.0468,93023.0,93010.0,0.22578188]
[1745360444877,0.003,93018.0,93011.0,0.01075141]
[1745360445242,0.003,93018.0,93012.0,0.0107513]
[1745360445452,0.0468,93023.0,93012.0,0.0107513]
[1745360445635,0.0498,93023.0,93013.0,0.01075118]
[1745360445866,0.0498,93023.0,93008.0,0.50037956]
[1745360445867,0.0498,93023.0,93008.0,0.28834578]
[1745360445988,0.0498,93023.0,93009.0,0.01075164]
[1745360446198,0.0468,93023.0,93010.0,0.01075153]
[1745360446417,0.003,93018.0,93012.0,0.002]
[1745360446685,0.003,93018.0,93008.0,0.01075176]
[1745360446821,0.01075095,93015.0,92979.0,0.01646239]
[1745360447026,0.0487,93012.0,93008.0,0.003]
[1745360447381,0.0466,93011.0,93008.0,0.01375176]
[1745360447536,0.0466,93011.0,93008.0,0.003]
[1745360448351,0.15490305,93011.0,92992.0,0.01075361]
[1745360448551,0.15490305,93011.0,92994.0,0.01075338]